Cogmind - Beta 14 *** ADVENTURER MODE // 2024.08.24 @ 14:06:22 Player: LegoMDS Result: Self-destructed Performance ------------- Evolutions (2) 1000 Regions Visited (4) 800 Robots Destroyed (45) 225 Value Destroyed (1197) 1197 Prototype IDs (1) 20 Alien Tech Used (0) 0 Bonus (26) 26 TOTAL SCORE: 3268 Bonus ------- High Alert Combat Kills 26 Cogmind --------- Core Integrity 443/550 Matter 300/300 Energy 275/275 System Corruption 1% Temperature Cool (0) Movement Walking (120) Location -8/Materials Parts ------- > --- POWER (1) -------- Deuterium Engine > --- PROPULSION (3) --- Aluminum Leg Carbon-fiber Leg Carbon-fiber Leg > --- UTILITY (5) ------ Medium Storage Unit Structural Scanner Subdweller Optics > --- WEAPON (2) ------- Field Laser Heavy Assault Rifle > --- INVENTORY (10) --- Nuclear Core Light Nuclear Core Aluminum Leg Aluminum Leg Aluminum Leg Weapon Cycler Hardlight Generator Beam Rifle Ion Cannon Advanced EMP Blaster Peak State ------------ > --- POWER ------------ Deuterium Engine > --- PROPULSION ------- Aluminum Leg Aluminum Leg Carbon-fiber Leg > --- UTILITY ---------- Improved Heat Sink Medium Storage Unit Structural Scanner Subdweller Optics Hardlight Generator > --- WEAPON ----------- Field Laser High-powered Shotgun > --- INVENTORY -------- Nuclear Core Light Nuclear Core Aluminum Leg Aluminum Leg Aluminum Leg Aluminum Leg Beam Rifle Assault Rifle Advanced EMP Blaster [Rating: 25] Favorites ----------- Power Light Nuclear Core Engine Light Ion Engine Power Core Light Nuclear Core Propulsion Aluminum Leg Leg Aluminum Leg Utility Structural Scanner Device Structural Scanner Storage Small Storage Unit Processor Targeting Computer Weapon Assault Rifle Energy Gun Field Laser Ballistic Gun Assault Rifle Launcher Advanced EMP Blaster Build | -11 -10 -10 -10 -8 ------- Run | Yrd Mat Min Sub Mat Slots Evolved 4 | . . . . 4 Power . | . . . . . Propulsion 1 | . . . . 1 Utility 3 | . . . . 3 Weapon . | . . . . . Parts Attached 32 | 6 2 4 1 19 Power 3 | 1 . 1 . 1 Engine 2 | 1 . . . 1 Core 1 | . . 1 . . Reactor . | . . . . . Propulsion 10 | 2 . 2 . 6 Treads . | . . . . . Leg 10 | 2 . 2 . 6 Wheel . | . . . . . Hover . | . . . . . Flight . | . . . . . Utility 9 | 1 2 . . 6 Device 6 | . 2 . . 4 Storage 2 | 1 . . . 1 Processor 1 | . . . . 1 Hackware . | . . . . . Protection . | . . . . . Artifact . | . . . . . Weapon 10 | 2 . 1 1 6 Energy Gun 1 | . . . . 1 Energy Cannon . | . . . . . Ballistic Gun 7 | 2 . 1 1 3 Ballistic Cannon . | . . . . . Launcher 2 | . . . . 2 Special Weapon . | . . . . . Impact Weapon . | . . . . . Slashing Weapon . | . . . . . Piercing Weapon . | . . . . . Special Melee Weapon . | . . . . . Unidentified Prototypes 1 | . . . . 1 Parts Lost 9 | . . 3 . 6 Power 1 | . . . . 1 Propulsion 4 | . . 2 . 2 Utility 1 | . . . . 1 Weapon 3 | . . 1 . 2 Highest Loss Streak 4 | . . 3 . 4 To Critical Strikes . | . . . . . Average Slot Usage (%) 94 | . 99 98 100 89 Engine 7 | . 14 1 . 4 Core 4 | . . 12 14 4 Leg 27 | . 28 26 28 26 Device 17 | . 13 14 14 23 Storage 11 | . 14 14 14 9 Processor 1 | . . . . 3 Energy Gun 2 | . . . . 5 Ballistic Gun 20 | . 28 28 28 12 Peak Build Rating 25 | 6 7 10 11 25 Average Rating 12 | 3 6 9 10 19 On Entrance 6 | . 6 7 10 11 Naked Turns . | . . . . . Heaviest Build 33 | 12 13 15 16 33 Greatest Support 40 | 20 20 20 20 40 Greatest Overweight (x) 1 | . . 1 . 1 Average Overweight (x) . | . . . . . Largest Inventory Capacity 10 | 8 8 8 8 10 Average Capacity 8 | 6 8 8 8 9 Most Carried 10 | 5 8 8 8 10 Average Carried 6 | 2 3 7 8 7 Final Capacity 10 | 8 8 8 8 10 Final Carried 10 | 2 8 8 8 10 Class Distribution -------------------- 95% | Mutant 4% | Scavenger-Mutant Dominant Class ---------------- Mutant | -10/Materials Mutant | -10/Mines Mutant | -10/Subcaves Mutant | -8/Materials Resources | -11 -10 -10 -10 -8 ----------- Run | Yrd Mat Min Sub Mat Matter Collected 1007 | 260 146 138 71 392 Remotely . | . . . . . Salvage Created 1442 | . 207 204 102 929 Parts 96 | . 17 14 4 61 Haulers Intercepted 1 | . . . . 1 Recyclers Shooed 1 | . . 1 . . Parts Field Recycled . | . . . . . Retrieved Matter . | . . . . . Parts Self-Destructed . | . . . . . Prevented . | . . . . . Kills | -11 -10 -10 -10 -8 ------- Run | Yrd Mat Min Sub Mat Combat Hostiles Destroyed 37 | . 8 6 2 21 Guns 35 | . 8 6 2 19 AOE 2 | . . . . 2 Classes Destroyed 11 | . 3 1 1 6 Worker 1 | . . . . 1 Builder 1 | . . . . 1 Hauler 1 | . . . . 1 Operator 1 | . . . . 1 Watcher 4 | . 2 . . 2 Swarmer 16 | . 6 3 . 7 Grunt 12 | . 2 2 . 8 Brawler 1 | . . . . 1 Sentry 5 | . . 1 . 4 Hunter 1 | . . . . 1 Subdweller 2 | . . . 2 . Best Kill Streak 8 | . 5 3 1 8 Combat Bots Only 6 | . 5 3 1 6 Max Kills in Single Turn 2 | . 2 1 1 2 Gunslinging 1 | . 1 . . . Exploded 1 | . . . . 1 Melee . | . . . . . Uniques/NPCs Destroyed . | . . . . . Combat | -11 -10 -10 -10 -8 -------- Run | Yrd Mat Min Sub Mat Hostile Shots Fired 206 | . 38 50 17 101 Missed 59 | . 12 11 4 32 Damage Taken 1567 | . 178 404 213 772 Core 242 | . 37 82 16 107 Absorbed by Shields 8 | . . . . 8 Ignored by Resistances 462 | . 54 118 61 229 Core Remaining (%) 73 | 100 . . 46 . Volleys Fired 103 | . 21 20 9 53 Largest 2 | . 2 2 2 2 Hottest 99 | . 40 40 43 99 Shots Fired 198 | . 42 40 18 98 Gun 195 | . 42 40 18 95 Cannon . | . . . . . Launcher 3 | . . . . 3 Special . | . . . . . Kinetic 157 | . 42 40 18 57 Thermal 38 | . . . . 38 Explosive . | . . . . . Electromagnetic 3 | . . . . 3 Robot Hit Streak 22 | . 9 11 12 22 Robot Miss Streak 5 | . 2 2 2 5 Penetration Max . | . . . . . Secondary Targets 5 | . 2 1 . 2 Max Gunslinging Chain 1 | . 1 1 . 1 Shots Hit Robots 158 | . 31 31 16 80 Core Hits 74 | . 12 11 4 47 Critical Kills . | . . . . . Critical Parts Destroyed . | . . . . . Critical Strikes 4 | . . . . 4 Burn 4 | . . . . 4 Melee Attacks . | . . . . . Impact . | . . . . . Slashing . | . . . . . Piercing . | . . . . . Sneak Attacks . | . . . . . Combat Hostiles . | . . . . . Follow-up Attacks . | . . . . . Damage Inflicted 2694 | . 400 409 205 1680 Guns 2466 | . 400 409 205 1452 Cannons . | . . . . . Explosions 228 | . . . . 228 Melee . | . . . . . Ramming . | . . . . . Kinetic 1918 | . 400 409 205 904 Thermal 548 | . . . . 548 Explosive . | . . . . . Electromagnetic 228 | . . . . 228 Impact . | . . . . . Slashing . | . . . . . Piercing . | . . . . . Highest Corruption 1 | . . . . 1 Average Corruption 1 | . . . . 1 Corruption Purged . | . . . . . Corruption Blocked . | . . . . . Effects 4 | . . . . 4 Message Errors 1 | . . . . 1 Matter Fused 1 | . . . . 1 Heat Flow Errors 1 | . . . . 1 Misfires 1 | . . . . 1 Overload Shots . | . . . . . Overflow Damage 53 | . . . . 53 Projectiles . | . . . . . Explosions 53 | . . . . 53 Melee . | . . . . . Knockbacks . | . . . . . Impact . | . . . . . Kinetic . | . . . . . Secondary . | . . . . . Self-Inflicted Damage . | . . . . . Shots . | . . . . . Rammed . | . . . . . Targets Rammed . | . . . . . Kicked . | . . . . . Crushed . | . . . . . Highest Temperature 254 | . . 26 . 254 Average Temperature 48 | . . 8 . 57 Received Heat Transfer 687 | . 30 201 18 438 Siege Activations . | . . . . . Robots Corrupted . | . . . . . Combat Hostiles . | . . . . . Parts Fried . | . . . . . Impact Corruptions . | . . . . . Robots Melted . | . . . . . Combat Hostiles . | . . . . . Parts Melted 1 | . . . 1 . Heat Transferred 1480 | . . . . 1480 Parts Sabotaged . | . . . . . Parts Stolen . | . . . . . Parts Stripped . | . . . . . Power Chain Reactions . | . . . . . Alert | -11 -10 -10 -10 -8 ------- Run | Yrd Mat Min Sub Mat Peak Influence 471 | . 236 136 . 471 Initial 24 | . . 11 . 24 Average 131 | . 65 85 . 207 Maximum Alert Level 2 | . 1 . . 2 Low Security (%) 71 | 100 95 100 . 41 Level 1 23 | . 4 . . 47 Level 2 4 | . . . . 10 Level 3 . | . . . . . Level 4 . | . . . . . Level 5 . | . . . . . High Security . | . . . . . Max Security . | . . . . . Squads Dispatched 3 | . 1 . . 2 Investigation 2 | . 1 . . 1 Extermination . | . . . . . Reinforcement 1 | . . . . 1 Assault . | . . . . . Garrison . | . . . . . Intercept . | . . . . . Searches Triggered . | . . . . . Construction Impeded . | . . . . . Haulers Reinforced . | . . . . . Active Scanning Responses . | . . . . . Cargo Convoy Interrupts . | . . . . . Stealth | -11 -10 -10 -10 -8 --------- Run | Yrd Mat Min Sub Mat Distress Signals 2 | . . . . 2 Communications Jammed . | . . . . . Distress Signals . | . . . . . Times Spotted 49 | . 11 7 2 29 Peak Tracking Total 7 | . 4 2 2 7 Tactical Retreats 3 | . . . . 3 Traps | -11 -10 -10 -10 -8 ------- Run | Yrd Mat Min Sub Mat Traps Triggered 2 | . 1 . . 1 Indirectly . | . . . . . Trap Hack Attempts . | . . . . . Triggered . | . . . . . Disarmed . | . . . . . Reprogrammed . | . . . . . Reused . | . . . . . Traps Extracted . | . . . . . Installed . | . . . . . Triggered . | . . . . . Machines | -11 -10 -10 -10 -8 ---------- Run | Yrd Mat Min Sub Mat Machines Disabled 1 | . . . . 1 Max in Single Turn 1 | . . . . 1 Garrison Access 1 | . . . . 1 Machines Repaired . | . . . . . Machines Dismantled . | . . . . . Machines Sabotaged . | . . . . . Overloaded Fab Kills . | . . . . . Hacking | -11 -10 -10 -10 -8 --------- Run | Yrd Mat Min Sub Mat Machines Accessed 6 | . 2 . . 4 Terminals 5 | . 2 . . 3 Fabricators . | . . . . . Repair Stations . | . . . . . Recycling Units . | . . . . . Scanalyzers . | . . . . . Garrison Access 1 | . . . . 1 Total Hacks 15 | . 4 . . 11 Successful 4 | . 1 . . 3 Failed 11 | . 3 . . 8 Catastrophic 2 | . 1 . . 1 Database Lockouts . | . . . . . Manual 4 | . 1 . . 3 Terminals 11 | . 4 . . 7 Fabricators . | . . . . . Repair Stations . | . . . . . Recycling Units . | . . . . . Scanalyzers . | . . . . . Garrison Access 4 | . . . . 4 Terminal Hacks 3 | . 1 . . 2 Robot Analysis 2 | . 1 . . 1 Branch Access Points 1 | . . . . 1 Fabricator Hacks . | . . . . . Repair Station Hacks . | . . . . . Recycling Unit Hacks . | . . . . . Scanalyzer . | . . . . . Garrison Access Hacks 1 | . . . . 1 Seal Access 1 | . . . . 1 Unauthorized Hacks . | . . . . . Terminals . | . . . . . Fabricators . | . . . . . Repair Stations . | . . . . . Recycling Units . | . . . . . Scanalyzers . | . . . . . Garrison Access . | . . . . . Data Cores Recovered . | . . . . . Used . | . . . . . Hacking Detections 4 | . 2 . . 2 Full Trace Events 2 | . 1 . . 1 Feedback Events . | . . . . . Feedback Blocked . | . . . . . Robot Schematics Acquired . | . . . . . Robots Built . | . . . . . Authchips . | . . . . . Time . | . . . . . Total Robot Build Rating . | . . . . . Part Schematics Acquired . | . . . . . Parts Built . | . . . . . Authchips . | . . . . . Time . | . . . . . Total Part Build Rating . | . . . . . Parts Repaired . | . . . . . Time . | . . . . . Parts Recycled . | . . . . . Recycled Matter . | . . . . . Retrieved Matter . | . . . . . Retrieved Components . | . . . . . Parts Scanalyzed . | . . . . . Part Schematics Acquired . | . . . . . Parts Damaged . | . . . . . Bothacking | -11 -10 -10 -10 -8 ------------ Run | Yrd Mat Min Sub Mat Used RIF Installer . | . . . . . Robots Hacked . | . . . . . Non-combat . | . . . . . Combat . | . . . . . Robot Hacks Applied . | . . . . . Relay Couplers Released . | . . . . . Fabnet Peak Effective % . | . . . . . Robots Rewired . | . . . . . Allies Hacked . | . . . . . Hacks Repelled . | . . . . . Allies | -11 -10 -10 -10 -8 -------- Run | Yrd Mat Min Sub Mat Total Allies . | . . . . . Largest Group . | . . . . . Highest-Rated Group . | . . . . . Highest-Rated Ally . | . . . . . Total Orders . | . . . . . Ally Attacks . | . . . . . Total Damage . | . . . . . Kills . | . . . . . Allies Corrupted . | . . . . . Allies Melted . | . . . . . Intel | -11 -10 -10 -10 -8 ------- Run | Yrd Mat Min Sub Mat Robot Analysis Total 2 | . 1 . . 1 Derelict Logs Recovered 2 | . . 1 1 . Drone Launches . | . . . . . Drone Recoveries . | . . . . . Exploration | -11 -10 -10 -10 -8 ------------- Run | Yrd Mat Min Sub Mat Turns Passed 1610 | 48 544 213 123 682 Spaces Moved 996 | 40 384 111 78 383 Core 18 | 18 . . . . Treads . | . . . . . Legs 978 | 22 384 111 78 383 Wheels . | . . . . . Hover . | . . . . . Flight . | . . . . . Fastest Speed 50 | 50 120 120 120 120 Average Speed 119 | 88 120 120 120 120 Slowest Speed 190 | 120 120 190 120 190 Overloaded Moves . | . . . . . Propulsion Burnouts . | . . . . . Robots Hopped . | . . . . . Cave-ins Triggered . | . . . . . Exploration Rate (%) 32 | 2 79 28 8 44 Regions Visited 4 Branch Regions 2 Pre-discovered Areas . | . . . . . Known Exits Taken . | . . . . . Unknown Exits Taken 4 | 1 1 1 1 . Scrap Searched . | . . . . . Spaces Dug . | . . . . . Terrain Destroyed . | . . . . . Melee . | . . . . . Projectile . | . . . . . AOE . | . . . . . Terrain Rammed . | . . . . . Walls Destroyed . | . . . . . Machines Disabled . | . . . . . Actions | -11 -10 -10 -10 -8 --------- Run | Yrd Mat Min Sub Mat Total 1223 | 52 424 151 89 507 Wait 45 | . 11 11 . 23 Move 992 | 39 383 110 77 383 Hop . | . . . . . Pick Up 37 | 7 7 4 1 18 Fast Attach 2 | 1 . . . 1 Attach 20 | 5 1 3 . 11 Detach 1 | . . . . 1 Swap 10 | . 1 1 1 7 Drop 13 | . . 2 1 10 Fire 103 | . 21 20 9 53 Melee . | . . . . . Ram . | . . . . . Kick . | . . . . . Crush . | . . . . . Escape Stasis . | . . . . . Rewire . | . . . . . Trap . | . . . . . Miscellaneous . | . . . . . Route ------- -11/Scrapyard -10/Materials (discovered 3 exits: [*Mat] / [*Min x2]) -10/Mines -10/Subcaves -8/Materials (discovered 2 exits: [*Fac] / *Sto) History --------- Turn | Location | Event 14 | -11/Scrapyard | Discovered new exit (range 16) 49 | -11/Scrapyard | Entered Materials 251 | -10/Materials | Discovered new exit (range 16) 311 | -10/Materials | Build established: Mutant 485 | -10/Materials | Discovered new exit (range 7) 560 | -10/Materials | Discovered new exit (range 16) 593 | -10/Materials | Entered Mines 702 | -10/Mines | Lost 3 parts (2n1w) 765 | -10/Mines | Learned Materials terminal intel 785 | -10/Mines | Discovered new exit (range 10) 806 | -10/Mines | Entered Subcaves 845 | -10/Subcaves | Core integrity fell below 50% 887 | -10/Subcaves | Learned Materials emergency access door positions 904 | -10/Subcaves | Discovered new exit (range 14) 929 | -10/Subcaves | Entered Materials 929 | -8/Materials | Evolved 4 slots: Propulsion x1, Utility x3 931 | -8/Materials | Loaded intel: 12 terminal locations 957 | -8/Materials | Discovered new exit (range 21) 1240 | -8/Materials | Lost 4 parts (2n1u1w) 1376 | -8/Materials | Discovered new exit (range 21) 1591 | -8/Materials | Identified exit to Storage 1611 | -8/Materials | Self-destructed Last Messages --------------- reinforcements to Terminal M001. O-16 Technician locks terminal. Hpw. Shotgun destroyed. Terminal disabled. O-16 Technician destroyed. Y-45 Defender destroyed. /V IERP6H6GBYLYJIVSGG:BT Q#9Z Y-45 Defender destroyed. Acquired 22 matter. T-07 Excavator is excavating. Acquired Weapon Cycler. Connecting with Terminal... >>Access(Branch) Found 1 branch access point: (25,67) Storage Map updated. K-01 Serf collects debris. U-05 Engineer lays Concrete. T-07 Excavator is excavating. U-05 Engineer lays Concrete. Map ----- +----------------------------------------------------+ | ????### ###??## ## ## ##### # = # | | ????### ###??## ## ## ##### # # | | ?????## ##???## ## ## ##?## # ?"Y" # | | ?????## ##???######## ## ##?## # ?""" # | | ?????## ##???######## ## ##?## ##?##### | | ?????## ##?????????## ## ##### ######## | | ####### ##?????????## = ## #####+######?? | | ####### ##?????????## ## # ##?? | | ## ########???## = ## # """" ##?? | | ## ########???############ # ""S"" ##?? | | """ ## #! ##???############ # "" "" ##?? | | """ ## # " ##????########### [=+ ##?? | | """ ## # """ ##???### # !%# % ###? | | ## # "" ##???### # =*# == ##? | | ##+#### # """ ##???## ! # %# = ###? | | # "" ##???### # #############? | | + """ ##????## !== !+% ############?? | | # """ ##????## != # ####? | | ###+####+## """ ##????##] == # < ####? | | # # " ##????## # """ ""##? | | # " """ # ##????## ### """ T"##? | | # "G" """ # * ##????####+##+####T """ ""##? | | # " " """ ########????#### ##### ####? | | # ########????#### ##### | | # ##??????????#### ########+####### ##### | | # ##??????????## @ ## #### # | | # ##??????????## u ## = ####!!!!]]# | | ############??????????##t ### "T" ####!! !]]# | | ############??????????######## ! ########### | | ??????????????????????############################ | | | | | | | | | | | | | | | | | | | | | | | | | | | | | | | | | | | | | | | | | +----------------------------------------------------+ Best States ------------- Heat Dissipation 45 Energy Generation 14 Energy Capacity 275 Matter Stores 300 Matter Capacity 300 Sight Range 21 Terrain Scan Density 10 Resistance: KI 20 Resistance: TH 20 Resistance: EX 20 Resistance: EM 20 Resistance: I 20 Resistance: S 20 Resistance: P 20 Evasion (%) 55 Targeting Accuracy 5 Offensive Hacking 10 Item Schematics ----------------- None Robot Schematics ------------------ None Fabricated ------------ Nothing Alien Tech Used ----------------- None Achievements -------------- None Challenges ------------ None Game ------ Seed GuidedHeartWheel Manual? 0 Play Time 00:15:54 Cumulative 37.1 hours Start 2024.08.24 @ 13:53:35 End 2024.08.24 @ 14:06:22 Sessions 1 Manual Loads 0 Difficulty Adventurer Special Mode None Game No. 47 Rogue 13 Adventurer 34 Explorer 0 Win Type - Total 0 Types 0/0/0/0/0/0/0/0/0 Lore% 30 Gallery% 39 Achievement% 35 Wizard Run 0 Options --------- Layout 1 ASCII 0 Keyboard 0 Movement Mouse Keybinds 0 Fullscreen 1 Font 24/Smallcaps Map View 50x35 Zoom Use 0% Tactical HUD 0 Map Filters NONE Filters NONE Steam 1 RUN: a0b35b37-67e1-4d18-bc53-eff52b7f1fa7